bitfinex/quotes_ETHUSD_20240824
["timestamp","ask_amount","ask_price","bid_price","bid_amount"]
[1724538749724,6.03807112,2754.2,2754.1,1.1210797]
[1724538750415,5.66224423,2754.2,2754.1,1.1210797]
[1724538750789,2.40726112,2754.2,2754.1,1.1210797]
[1724538750988,0.52778749,2754.2,2754.1,3.4894797]
[1724538751188,1.6942314,2754.2,2754.1,3.4894797]
[1724538751394,1.12781886,2754.3,2754.1,3.83842767]
[1724538751606,1.12781886,2754.2,2754.1,3.83842767]
[1724538751931,0.7519326,2754.2,2754.1,2.71734797]
[1724538752136,0.7519326,2754.3,2754.1,2.71734797]
[1724538752930,0.7519326,2754.3,2754.1,2.3684]
[1724538753119,1.12781886,2754.2,2754.1,2.3684]
[1724538753431,1.12781886,2754.3,2754.1,2.3684]
[1724538753641,0.75194126,2754.2,2754.1,2.3684]
[1724538754021,0.75194126,2754.2,2753.7,2.3472]
[1724538754195,0.75192364,2754.0,2753.7,2.3472]
[1724538754689,0.75192364,2754.0,2753.7,6.939706]
[1724538755901,0.75192364,2754.0,2753.7,8.061706]
[1724538756329,0.75192364,2754.0,2753.8,3.63133]
[1724538756535,0.75192364,2754.1,2753.8,3.63133]
[1724538759263,0.75192364,2754.0,2753.8,3.63133]
[1724538760638,0.75192364,2754.0,2753.8,3.63127]
[1724538760962,0.75192364,2754.1,2753.8,4.341317]
[1724538761476,0.75192364,2754.1,2754.0,3.63108]
[1724538762396,0.75192364,2754.1,2753.8,7.972547]
[1724538762873,0.75192364,2754.1,2753.9,3.6312]
[1724538763633,0.75192364,2754.1,2753.8,0.710047]
[1724538763878,0.75192364,2754.0,2753.8,3.63125]
[1724538764046,0.75192364,2754.1,2753.8,7.26248]
[1724538764248,0.75192364,2753.9,2753.7,3.4692]
[1724538764450,0.75192364,2753.9,2753.7,7.10065]
[1724538764650,0.75192364,2753.9,2753.8,3.63134]
[1724538764849,0.75192364,2754.0,2753.9,3.63121]
[1724538765182,0.75192364,2754.1,2754.0,3.63108]
[1724538765749,0.75192364,2754.1,2753.9,5.97841]
[1724538766334,0.75192364,2754.1,2753.9,2.3472]
[1724538768136,4.38296364,2754.1,2753.9,2.3472]
[1724538768531,0.75192364,2754.0,2753.9,2.3472]
[1724538770983,0.75192364,2754.1,2753.9,2.3472]
[1724538771683,0.75192364,2754.0,2753.9,2.3472]
[1724538772005,3.63121,2753.9,2753.7,1.122]
[1724538772157,4.75915886,2753.8,2753.7,1.122]
[1724538773293,1.12781886,2753.9,2753.7,3.4542]
[1724538773465,1.12781886,2753.8,2753.7,3.4542]
[1724538774801,0.75158021,2753.8,2753.7,3.4542]
[1724538775363,1.12781886,2753.9,2753.7,3.4542]
[1724538775809,0.75175485,2753.8,2753.7,3.4542]
[1724538776107,1.12781886,2753.9,2753.7,3.4542]
[1724538776458,1.12781886,2753.8,2753.7,3.4542]
[1724538777311,1.12781886,2753.9,2753.7,3.4542]
[1724538777467,1.12781886,2753.8,2753.7,3.4542]
[1724538778496,1.12877449,2753.8,2753.7,3.4542]
[1724538778866,1.12877449,2753.9,2753.7,4.162782]
[1724538779174,0.75254779,2753.8,2753.7,4.162782]
[1724538779375,1.12877449,2753.8,2753.7,3.4542]
[1724538780163,0.14998104,2753.8,2753.7,3.4542]
[1724538780394,0.48703067,2753.8,2753.7,1.122]
[1724538780611,5.99726767,2753.8,2753.7,1.122]
[1724538780814,0.48703067,2753.8,2753.7,1.122]
[1724538780996,1.84258899,2753.8,2753.7,1.122]
[1724538781313,1.99257373,2753.8,2753.7,1.122]
[1724538782567,0.48703437,2753.8,2753.7,1.122]
[1724538783116,19.02779814,2753.8,2753.7,1.122]
[1724538783317,19.54589536,2753.8,2753.7,0.98651881]
[1724538783626,22.54589536,2753.8,2753.7,0.98651881]
[1724538783789,26.70054468,2753.8,2753.7,0.98651881]
[1724538784280,17.26110224,2753.8,2753.7,0.98651881]
[1724538784482,20.99894877,2753.8,2753.7,0.98651881]
[1724538784721,21.56054892,2753.8,2753.7,0.98651881]
[1724538785035,9.64602391,2753.8,2753.7,0.98651881]
[1724538785884,12.84209772,2753.8,2753.7,0.98651881]
[1724538786102,12.84209772,2753.8,2753.0,2.3322]
[1724538786103,3.63192,2753.4,2753.0,2.3322]
[1724538786302,1.12863334,2753.1,2753.0,2.3322]
[1724538787167,1.12863334,2753.2,2753.0,2.3322]
[1724538787400,0.75235097,2753.1,2753.0,2.3322]
[1724538787620,1.12863334,2753.2,2753.0,2.3322]
[1724538788345,0.75224681,2753.1,2753.0,6.561067]
[1724538788501,0.75224681,2753.2,2753.0,6.561067]
[1724538788835,0.75224681,2753.3,2753.0,6.561067]
[1724538789042,0.75224681,2753.3,2753.2,3.63213]
[1724538789338,0.75224681,2753.6,2753.5,3.63174]
[1724538789505,0.75224681,2753.7,2753.6,3.6316]
[1724538789704,1.12863334,2753.8,2753.5,2.3322]
[1724538789943,3.6316,2753.6,2753.3,19.7]
[1724538790104,0.75213775,2753.4,2753.3,19.7]
[1724538790307,1.12863334,2753.5,2753.3,23.09837921]
[1724538790308,0.75213775,2753.5,2753.3,23.09837921]
[1724538790507,1.12863334,2753.6,2753.4,3.63177]
[1724538790508,0.75213775,2753.6,2753.4,3.63177]
[1724538790717,0.75213775,2753.6,2753.5,2.3322]
[1724538791532,0.75213775,2753.6,2753.5,5.96394]
[1724538792241,0.75213775,2753.7,2753.5,5.96394]
[1724538792392,0.75213775,2753.6,2753.5,9.33194892]
[1724538793209,0.75213775,2753.6,2753.5,5.96394]
[1724538793823,0.75213775,2753.6,2753.5,2.3322]
[1724538794522,1.12863334,2753.7,2753.5,2.3322]
[1724538795154,1.12863334,2753.6,2753.5,2.3322]
[1724538795306,1.12863334,2753.7,2753.5,2.3322]
[1724538795508,1.12863334,2753.6,2753.5,2.3322]
[1724538796452,0.7520892,2753.6,2753.5,2.3322]
[1724538796808,0.7520892,2753.6,2753.5,5.96394]
[1724538797010,0.7520892,2753.6,2753.5,7.022119]
[1724538797250,1.12863334,2753.7,2753.5,2.3322]
[1724538797557,1.12863334,2753.6,2753.5,2.3322]
[1724538800098,1.12863334,2753.7,2753.5,2.3322]
[1724538800461,1.12863334,2753.6,2753.5,2.3322]
[1724538800672,1.12863334,2753.6,2753.5,5.96394]
[1724538800875,1.12863334,2753.7,2753.6,3.6316]
[1724538801273,1.12863334,2753.7,2753.5,2.3322]
[1724538801487,1.12829643,2753.6,2753.5,2.3322]
[1724538802673,1.12829643,2753.6,2753.3,0.986]
[1724538802875,0.75224418,2753.4,2753.3,0.986]
[1724538803074,1.12835999,2753.5,2753.3,0.986]
[1724538803075,0.75224418,2753.5,2753.3,0.986]
[1724538803411,0.75224418,2753.4,2753.3,0.986]
[1724538803555,0.75225943,2753.4,2753.3,0.986]
[1724538803753,1.12835999,2753.5,2753.3,0.986]
[1724538804317,1.12835999,2753.5,2753.3,8.25]
[1724538804453,0.75233019,2753.4,2753.3,6.50060321]
[1724538805161,0.75233019,2753.4,2753.3,8.75730321]
[1724538805356,0.75233019,2753.5,2753.4,3.63187]
[1724538805556,0.75233019,2753.5,2753.4,7.26374]
[1724538805810,1.12835999,2753.6,2753.5,9.52018]
[1724538805811,0.75233019,2753.6,2753.5,9.52018]
[1724538805977,0.75233019,2753.6,2753.5,10.75905832]
[1724538806570,0.75233019,2753.7,2753.6,9.5199]
[1724538806873,1.12835999,2753.8,2753.7,9.51964]
[1724538806874,0.75233019,2753.8,2753.7,9.51964]
[1724538807078,0.75233019,2753.9,2753.8,9.51938]
[1724538808053,0.75233019,2754.1,2753.9,2.2567]
[1724538808369,4.89177154,2754.8,2753.9,2.2567]
[1724538808370,0.75233019,2754.2,2754.1,13.14955]
[1724538808578,0.75233019,2754.3,2754.2,9.51832]
[1724538808873,0.75233019,2754.7,2754.6,9.51728]
[1724538809172,1.12835999,2754.8,2754.6,9.51728]
[1724538809173,1.12835999,2754.8,2754.6,5.88699]
[1724538809383,0.75255423,2754.7,2754.6,5.88699]
[1724538809941,0.75255423,2754.7,2754.6,2.2567]
[1724538810163,1.12835999,2754.7,2754.6,2.2567]
[1724538810343,1.50513733,2754.9,2754.6,2.2567]
[1724538810344,1.12835999,2754.8,2754.6,2.2567]
[1724538811329,0.75176928,2754.7,2754.6,2.2567]
[1724538812145,0.75176928,2754.7,2754.3,5.3512]
[1724538812378,0.75175273,2754.6,2754.3,8.98187]
[1724538812585,0.75175273,2754.6,2754.4,3.63052]
[1724538812938,0.75175273,2754.7,2754.4,3.63052]
[1724538813187,0.75175273,2754.6,2754.4,3.63052]
[1724538813395,0.75175273,2754.7,2754.4,3.63045]
[1724538813555,0.75175273,2754.7,2754.5,3.63042]
[1724538814359,0.75175273,2754.8,2754.5,3.63042]
[1724538815465,0.75175273,2754.9,2754.5,3.63042]
[1724538815779,0.75175273,2754.8,2754.5,3.63042]
[1724538815984,0.75175273,2754.9,2754.5,7.26074]
[1724538816281,0.75175273,2754.9,2754.5,8.57415183]
[1724538816432,0.75175273,2754.9,2754.5,4.94373183]
[1724538816633,0.75175273,2754.9,2754.5,3.63032]
[1724538816838,0.75175273,2754.8,2754.5,3.63032]
[1724538817585,0.75175273,2754.9,2754.5,3.63032]
[1724538817752,0.75175273,2754.9,2754.5,7.26065]
[1724538817943,0.75175273,2754.9,2754.5,3.63032]
[1724538818450,0.75175273,2754.9,2754.7,3.63015]
[1724538818665,1.12835999,2755.0,2754.7,3.63015]
[1724538818666,0.75175273,2755.0,2754.7,3.63015]
[1724538819756,0.75175273,2754.9,2754.7,3.63015]
[1724538820082,0.75175273,2755.0,2754.7,3.63015]
[1724538820282,0.75175273,2754.9,2754.3,5.3512]
[1724538820450,0.33852501,2755.0,2754.3,5.3512]
[1724538820451,0.75175273,2754.8,2754.4,3.63046]
[1724538820642,0.75175273,2754.9,2754.6,3.63023]
[1724538820841,0.75175273,2754.8,2754.6,3.63023]
[1724538821790,0.75175273,2754.9,2754.6,3.63023]
[1724538822306,0.75175273,2755.0,2754.6,3.6302]
[1724538822590,0.75175273,2755.0,2754.7,3.63015]
[1724538823577,0.75175273,2755.0,2754.8,5.88319]
[1724538823784,0.75175273,2755.1,2754.8,5.88319]
[1724538824602,0.75175273,2755.1,2754.8,5.88313]
[1724538824898,0.75175273,2755.1,2754.8,5.88322]
[1724538827286,0.75175273,2755.2,2754.8,5.88322]
[1724538828089,0.75175273,2755.2,2754.9,3.62979]
[1724538829698,0.75175273,2755.2,2754.8,5.88315]
[1724538830357,0.75175273,2755.1,2754.8,5.88315]
[1724538831262,0.75175273,2755.2,2754.8,5.88315]
[1724538832356,0.75175273,2755.1,2754.8,5.88315]
[1724538832556,0.75175273,2755.2,2754.8,9.51309]
[1724538832803,0.75175273,2755.2,2755.0,3.62975]
[1724538833006,0.75175273,2755.4,2755.2,2.2974]
[1724538838227,0.75175273,2755.6,2755.2,2.2974]
[1724538838525,1.12835999,2755.7,2755.2,2.2974]
[1724538838526,0.75175273,2755.7,2755.2,2.2974]
[1724538838822,0.75175273,2755.7,2755.3,3.85908]
[1724538839493,1.12835999,2755.8,2755.3,3.85908]
[1724538839494,0.75175273,2755.8,2755.3,3.85908]
[1724538839677,0.75175273,2755.8,2755.4,3.62922]
[1724538840123,0.75175273,2755.8,2755.5,2.2974]
[1724538840425,0.75175273,2755.8,2755.5,2.91303]
[1724538840719,1.12835999,2756.0,2755.5,2.91303]
[1724538840720,4.38028273,2756.0,2755.5,2.91303]
[1724538840882,0.75175273,2756.0,2755.5,2.91303]
[1724538841285,0.75175273,2755.9,2755.5,2.91303]
[1724538841814,3.62845,2756.0,2755.5,2.91303]
[1724538841815,4.38020273,2756.0,2755.5,2.91303]
[1724538842018,0.75175273,2755.9,2755.5,2.2974]
[1724538842227,0.75175273,2756.0,2755.5,5.9265]
[1724538843988,4.38007273,2756.1,2755.5,5.9265]
[1724538844192,0.75175273,2756.0,2755.5,5.9265]
[1724538845031,4.19880393,2756.0,2755.5,5.9265]
[1724538845175,0.75175273,2755.9,2755.6,2.3066]
[1724538845384,4.38007273,2756.1,2755.6,2.3066]
[1724538846316,0.75175273,2756.0,2755.6,2.3066]
[1724538846701,4.38007273,2756.1,2755.6,2.3066]
[1724538847426,0.75175273,2756.0,2755.6,2.3066]
[1724538848202,4.38007273,2756.1,2755.6,2.3066]
[1724538848403,0.75175273,2756.0,2755.6,5.93555]
[1724538848632,0.75175273,2756.0,2755.7,3.62881]
[1724538848941,1.50513733,2756.3,2755.8,2.3066]
[1724538848942,1.12835999,2756.2,2755.8,2.3066]
[1724538849157,0.75175273,2756.2,2755.8,2.3066]
[1724538849716,0.75175273,2756.3,2756.1,2.3066]
[1724538850356,0.75175273,2756.3,2756.1,5.93487]
[1724538852154,0.75175273,2756.2,2756.1,5.93487]
[1724538853662,0.75175273,2756.3,2756.2,5.97388]
[1724538853873,0.75175273,2756.4,2756.2,5.97388]
[1724538854022,0.75175273,2756.5,2756.2,5.97388]
[1724538854218,0.75175273,2756.5,2756.3,3.62802]
[1724538854420,0.75175273,2756.6,2756.4,3.62784]
[1724538854731,0.75175273,2756.6,2756.5,2.3457]
[1724538859364,4.75587999,2756.7,2756.2,3.3317]
[1724538859523,1.50513733,2756.8,2756.2,0.986]
[1724538859524,3.62805,2756.3,2756.2,0.986]
[1724538859718,4.75636999,2756.4,2756.2,0.986]
[1724538859919,0.75024134,2756.3,2756.2,0.986]
[1724538861385,1.12835999,2756.3,2756.2,0.986]
[1724538861737,4.75636999,2756.4,2756.2,0.986]
[1724538862032,0.75022768,2756.3,2756.2,0.986]
[1724538862252,0.75022768,2756.3,2756.2,1.97936621]
[1724538862548,0.75022768,2756.3,2756.2,0.986]
[1724538863143,0.75022768,2756.4,2756.2,0.986]
[1724538863985,4.37793768,2756.6,2756.3,2.3457]
[1724538864136,0.75022768,2756.5,2756.3,2.3457]
[1724538864343,4.37793768,2756.6,2756.3,2.3457]
[1724538865084,0.75022768,2756.6,2756.3,2.3457]
[1724538865249,0.75022768,2756.6,2756.3,3.041679]
[1724538865583,0.75022768,2756.7,2756.3,6.669609]
[1724538867153,4.37790768,2756.6,2756.3,2.3457]
[1724538867986,4.19727888,2756.6,2756.2,0.986]
[1724538868299,11.83151119,2756.3,2756.2,0.986]
[1724538868792,11.2531512,2756.3,2756.2,0.986]
[1724538868964,7.6251012,2756.3,2756.2,0.986]
[1724538869359,12.66960892,2756.3,2756.2,0.986]
[1724538869592,13.00672931,2756.3,2756.2,0.986]
[1724538869949,16.01992231,2756.3,2756.2,0.986]
[1724538870204,17.35702301,2756.3,2756.2,0.986]
[1724538870696,17.35704126,2756.3,2756.2,0.986]
[1724538870851,15.48054756,2756.3,2756.2,0.986]
[1724538871054,16.01988259,2756.3,2756.2,0.986]
[1724538873355,16.54014463,2756.3,2756.2,0.986]
[1724538873768,15.66367096,2756.3,2756.2,0.986]
[1724538874108,18.79137092,2756.3,2756.2,0.87413243]
[1724538874313,19.01846277,2756.3,2756.2,0.87413243]
[1724538874602,22.64651098,2756.3,2756.2,0.87413243]
[1724538874809,22.41942092,2756.3,2756.2,0.87413243]
[1724538874964,22.646512,2756.3,2756.2,0.87413243]
[1724538875359,22.65042889,2756.3,2756.2,0.87413243]
[1724538875677,7.25742,2755.9,2755.4,2.3457]
[1724538875879,0.75165646,2755.6,2755.4,2.3457]
[1724538876189,0.75165646,2755.6,2755.2,3.62939]
[1724538876190,0.75165646,2755.5,2755.0,2.3827]
[1724538876391,0.75165646,2755.5,2754.6,2.3827]
[1724538876392,3.62971,2755.1,2754.6,2.3827]
[1724538876608,0.75167774,2755.0,2754.6,2.3827]
[1724538877103,0.75167774,2755.0,2754.6,6.01294]
[1724538877505,0.75167774,2755.0,2754.6,9.47921921]
[1724538877693,0.75167774,2755.0,2754.7,3.63007]
[1724538878503,0.75167774,2755.0,2754.8,2.3827]
[1724538879587,0.75167774,2755.0,2754.8,6.0127]
[1724538879824,0.75167774,2755.0,2754.9,3.62989]
[1724538880001,0.75167774,2755.0,2754.9,10.694139]
[1724538880624,0.75167774,2755.0,2754.9,13.694139]
[1724538883437,0.75167774,2755.4,2755.3,3.62936]
[1724538883677,0.75167774,2755.4,2755.3,6.01206]
[1724538884179,0.75167774,2755.4,2755.3,9.64142]
[1724538884352,0.75167774,2755.4,2755.3,10.605562]
[1724538888358,0.75167774,2755.6,2755.4,3.62923]
[1724538889302,0.75167774,2755.6,2755.5,6.0118]
[1724538891101,0.75167774,2755.6,2755.5,9.6409]
[1724538891260,0.75167774,2755.6,2755.5,10.7014042]
[1724538891464,0.75167774,2755.7,2755.6,3.62897]
[1724538891861,1.1274847,2755.8,2755.5,7.0721842]
[1724538892097,0.75257371,2755.6,2755.5,6.01168]
[1724538895475,0.75257371,2755.6,2755.5,2.3827]
[1724538895816,0.75254082,2755.6,2755.5,2.3827]
[1724538896116,1.1274847,2755.6,2755.2,6.05291]
[1724538896320,0.75250895,2755.4,2755.2,6.05291]
[1724538897621,1.12876342,2755.5,2755.2,6.05291]
[1724538897622,0.75250895,2755.3,2755.2,6.05291]
[1724538897826,0.75250895,2755.3,2755.2,9.05291]
[1724538898028,0.75250895,2755.4,2755.2,9.05291]
[1724538898883,0.75250895,2755.4,2755.0,6.05314]
[1724538899026,0.75250895,2755.4,2754.8,6.19333212]
[1724538899027,0.75250895,2755.1,2754.8,6.19333212]
[1724538899237,0.75250895,2755.0,2754.9,19.7]
[1724538899550,0.75250895,2755.1,2754.9,19.7]
[1724538899711,1.12876342,2755.2,2754.9,19.7]
[1724538899712,0.75250895,2755.0,2754.9,19.7]
[1724538900821,0.75250895,2755.1,2754.9,19.7]
[1724538901560,0.75250895,2755.0,2754.9,19.7]
[1724538904943,0.75250895,2755.1,2754.9,23.32989]
[1724538905165,0.75250895,2755.1,2754.9,19.7]
[1724538905526,0.75250895,2755.0,2754.9,19.7]
[1724538908263,1.12876342,2755.2,2754.9,19.7]
[1724538908264,0.75250895,2755.2,2755.1,3.62963]
[1724538908447,0.75250895,2755.2,2755.1,7.25926]
[1724538908647,0.75250895,2755.3,2755.2,3.6295]
[1724538910461,0.75250895,2755.3,2755.2,9.6825]
[1724538910631,0.75250895,2755.5,2755.4,6.05273]
[1724538910831,1.12876342,2755.6,2755.4,2.4235]
[1724538911078,1.12876342,2755.6,2755.3,3.62936]
[1724538911376,0.75242817,2755.4,2755.3,3.62936]
[1724538911736,0.75242817,2755.4,2755.1,6.05308]
[1724538911948,1.88119159,2755.4,2755.1,6.05308]
[1724538912202,0.75242817,2755.3,2755.1,2.4235]
[1724538912395,0.75242817,2755.2,2755.1,6.05311]
[1724538913815,0.75242817,2755.3,2755.2,3.6295]
[1724538913987,1.12876342,2755.4,2755.1,2.4235]
[1724538914171,1.50331293,2755.3,2755.1,2.4235]
[1724538914572,1.12983423,2755.2,2755.1,2.4235]
[1724538915597,1.12983423,2755.2,2755.1,6.05313]
[1724538915802,0.75328261,2755.2,2755.1,10.651038]
[1724538916008,0.75328261,2755.3,2755.2,3.6295]
[1724538916336,1.12983423,2755.4,2755.2,3.6295]
[1724538916706,0.75336016,2755.4,2755.3,13.27538]
[1724538916907,1.50331293,2755.7,2755.3,13.27538]
[1724538916908,0.75336016,2755.7,2755.6,6.01627]
[1724538917122,0.75336016,2755.7,2755.6,12.64524]
[1724538918618,0.75336016,2755.8,2755.7,7.25768]
[1724538918791,0.75336016,2755.8,2755.7,8.522178]
[1724538919130,0.75336016,2755.8,2755.7,10.909478]
[1724538919722,1.12983423,2756.0,2755.8,3.62871]
[1724538919940,0.75315697,2755.9,2755.8,3.62871]
[1724538920095,0.75315697,2755.9,2755.8,7.25742]
[1724538920294,0.75315697,2755.9,2755.8,8.6483418]
[1724538920490,0.75315697,2756.1,2756.0,3.62844]
[1724538920695,0.75315697,2756.2,2756.1,2.3873]
[1724538921022,0.75315697,2756.3,2756.2,9.64366]
[1724538921221,0.75315697,2756.3,2756.2,12.64366]
[1724538921424,1.12983423,2756.5,2756.3,3.62805]
[1724538921425,0.75315697,2756.4,2756.3,3.62805]
[1724538921806,0.75315697,2756.4,2756.3,7.2561]
[1724538922310,0.75315697,2756.5,2756.4,3.62792]
[1724538922638,1.12983423,2756.6,2756.4,3.62792]
[1724538923136,0.75246931,2756.5,2756.4,3.62792]
[1724538923349,0.75246931,2756.5,2756.4,5.0486836]
[1724538923706,1.12983423,2756.7,2756.5,3.62778]
[1724538923952,0.75221687,2756.6,2756.5,3.62778]
[1724538925460,1.50331293,2756.9,2756.5,3.62778]
[1724538925461,0.75221687,2756.8,2756.6,3.62765]
[1724538925649,0.75221687,2756.8,2756.6,3.62755]
[1724538925821,0.75221687,2756.8,2756.7,3.62752]
[1724538926221,0.75221687,2756.9,2756.8,3.62739]
[1724538926424,0.75221687,2756.9,2756.7,4.591757]
[1724538926425,0.75221687,2757.0,2756.9,3.62726]
[1724538926785,1.12983423,2757.2,2756.9,3.62726]
[1724538926786,0.75221687,2757.1,2756.9,3.62726]
[1724538927034,0.75221687,2757.3,2757.0,2.3873]
[1724538927189,1.50331293,2757.5,2757.0,2.3873]
[1724538927190,0.75221687,2757.5,2757.4,3.6266]
[1724538927345,0.75221687,2757.7,2757.4,3.6266]
[1724538927546,0.75221687,2757.6,2757.4,3.6266]
[1724538928484,0.75221687,2757.7,2757.4,3.6266]
[1724538929182,0.75221687,2757.7,2757.2,3.62675]
[1724538930152,0.75221687,2757.7,2757.3,3.6267]
[1724538930356,4.75579423,2757.9,2757.2,7.25352]
[1724538930357,4.37829687,2757.8,2757.2,7.25352]
[1724538930557,5.00420759,2757.8,2757.2,7.25352]
[1724538930780,1.37812759,2757.8,2757.0,8.94637212]
[1724538930977,4.37876687,2757.5,2757.0,5.31933212]
[1724538932098,3.62662,2757.4,2757.0,5.31933212]
[1724538932704,3.62662,2757.4,2756.9,23.32723]
[1724538932911,0.75221687,2757.5,2756.9,23.32723]
[1724538933060,0.75221687,2757.5,2757.1,3.62698]
[1724538933397,0.75221687,2757.6,2757.1,5.97988]
[1724538933600,3.62635,2757.6,2757.1,5.97988]
[1724538934000,4.37856687,2757.6,2757.1,5.97988]
[1724538934324,4.60239318,2757.6,2757.1,2.3529]
[1724538934605,3.62663,2757.4,2756.9,19.7]
[1724538934803,7.25336,2757.4,2756.9,19.7]
[1724538934962,3.62663,2757.4,2756.9,19.7]
[1724538936558,3.62663,2757.4,2756.9,23.32725]
[1724538936755,12.42815125,2757.6,2757.0,3.62712]
[1724538936959,11.67595438,2757.6,2757.0,3.62712]
[1724538937207,8.04949438,2757.6,2757.0,3.62712]
[1724538937774,0.75221687,2757.8,2757.1,2.3529]
[1724538937978,3.62605,2757.9,2757.3,3.62666]
[1724538938179,3.6261,2757.8,2757.2,3.62678]
[1724538938391,3.6261,2757.8,2757.2,3.62677]
[1724538939086,5.94582,2757.7,2757.2,3.62677]
[1724538939515,10.6991612,2757.9,2757.3,3.62672]
[1724538939689,12.18924243,2757.9,2757.3,3.62672]
[1724538940113,8.56318243,2757.9,2757.3,3.62672]
[1724538940314,7.0731012,2757.9,2757.4,3.62658]
[1724538940499,4.37767687,2758.3,2757.7,3.6262]
[1724538940704,3.62546,2758.3,2757.7,3.6262]
[1724538941241,7.251,2758.3,2757.7,3.6262]
[1724538941395,3.62556,2758.2,2757.7,3.6262]
[1724538941722,3.62556,2758.2,2757.5,5.97935]
[1724538941723,3.62556,2758.2,2757.5,9.60572]
[1724538941888,3.62569,2758.1,2757.5,5.97927]
[1724538942107,3.6261,2757.8,2757.5,2.3529]
[1724538942318,3.62599,2757.9,2757.3,8.94599212]
[1724538942492,7.25203,2757.9,2757.3,8.94599212]
[1724538942806,3.62599,2757.9,2757.3,12.57262212]
[1724538943010,3.62599,2757.9,2757.4,3.62659]
[1724538943247,3.62599,2757.9,2757.3,10.73851433]
[1724538943401,3.62599,2757.9,2757.3,14.36517433]
[1724538943951,3.62599,2757.9,2757.4,3.6266]
[1724538945527,7.25156,2758.1,2757.4,3.6266]
[1724538945869,7.0726212,2758.2,2757.4,3.49276822]
[1724538946073,0.75221687,2758.4,2758.0,3.62579]
[1724538946220,3.4470512,2758.5,2758.0,3.62579]
[1724538946418,7.0722112,2758.5,2758.0,3.62579]
[1724538946621,3.4470512,2758.5,2758.0,7.25152]
[1724538948149,3.4470512,2758.5,2758.0,3.62573]
[1724538949323,3.4470512,2758.5,2758.0,4.586194]
[1724538949758,3.62456,2759.0,2758.3,3.62534]
[1724538950067,3.6249,2758.7,2758.1,5.97849]
[1724538950250,3.62486,2758.8,2758.1,5.97849]
[1724538950425,3.62486,2758.8,2758.1,7.0349594]
[1724538951237,4.27645681,2759.0,2758.2,3.62551]
[1724538951458,7.72350801,2759.0,2758.2,3.62551]
[1724538951772,7.0716212,2759.0,2758.2,3.62551]
[1724538952268,3.62478,2758.8,2758.3,3.6254]
[1724538952566,3.62478,2758.8,2758.2,3.62551]
[1724538952726,3.62478,2758.8,2758.3,0.874]
[1724538954574,3.62478,2758.8,2758.4,2.4316]
[1724538957587,7.0716212,2759.0,2758.4,3.124701]
[1724538959393,7.0716212,2759.0,2758.5,3.62514]
[1724538960247,3.6243,2759.2,2758.5,3.62514]
[1724538960248,7.24864,2759.2,2758.5,3.62514]
[1724538960455,3.6244,2759.1,2758.6,2.4316]
[1724538960685,3.6244,2759.1,2758.4,0.693101]
[1724538960686,3.62463,2758.9,2758.4,3.124701]
[1724538960890,3.62464,2758.9,2758.4,3.124701]
[1724538961203,3.09441687,2759.2,2758.4,3.124701]
[1724538961204,3.62496,2758.7,2758.4,3.124701]
[1724538961406,3.62496,2758.7,2758.3,0.874]
[1724538961762,7.24996,2758.7,2758.3,0.874]
[1724538962197,3.62502,2758.6,2758.3,0.874]
[1724538962658,3.62524,2758.5,2758.3,0.874]
[1724538962861,3.62529,2758.4,2758.3,0.874]
[1724538965292,13.15068404,2758.4,2758.3,0.874]
[1724538965605,16.54894952,2758.4,2758.3,0.874]
[1724538965810,15.38262362,2758.4,2758.3,0.874]
[1724538966610,15.04563659,2758.4,2758.3,0.874]
[1724538966764,17.25157246,2758.4,2758.3,0.874]
[1724538967692,17.25678406,2758.4,2758.3,0.874]
[1724538968277,11.42034659,2758.4,2758.3,0.874]
[1724538968504,13.63189704,2758.4,2758.3,0.874]
[1724538968716,11.42034659,2758.4,2758.3,0.874]
[1724538968898,11.42034659,2758.4,2758.3,0.7804869]
[1724538968899,14.18126154,2758.4,2758.3,0.7804869]
[1724538969120,13.53844157,2758.4,2758.3,0.7804869]
[1724538969294,11.66400775,2758.4,2758.3,0.7804869]
[1724538969658,9.41501674,2758.4,2758.3,0.7804869]
[1724538969809,3.62578,2758.1,2757.9,2.4316]
[1724538970145,8.37656041,2758.1,2757.9,2.4316]
[1724538970294,4.75080041,2758.0,2757.9,2.4316]
[1724538972010,1.12499041,2758.1,2757.9,2.4316]
[1724538972414,1.12499041,2758.0,2757.9,2.4316]
[1724538972614,5.12579722,2758.0,2757.5,2.2901]
[1724538972925,0.750677,2757.7,2757.5,2.2901]
[1724538974298,0.750677,2757.8,2757.5,3.0721]
[1724538974949,0.750677,2757.8,2757.5,6.69856]
[1724538975105,0.750677,2757.9,2757.5,7.368421]
[1724538977052,0.750677,2757.8,2757.5,3.741961]
[1724538977600,0.750677,2757.7,2757.5,3.741961]
[1724538980236,1.12601551,2757.9,2757.5,3.741961]
[1724538980237,0.750677,2757.8,2757.5,3.741961]
[1724538980855,0.750677,2757.7,2757.5,3.741961]
[1724538981069,0.7513048,2757.8,2757.6,0.7368471]
[1724538981324,0.7513048,2757.8,2757.7,5.99571]
[1724538981325,0.75148065,2757.8,2757.7,5.99571]
[1724538981554,0.75148065,2757.9,2757.7,9.62192]
[1724538981847,0.75148065,2757.9,2757.8,4.66194671]
[1724538982635,0.75148065,2757.9,2757.8,1.03587671]
[1724538982834,0.75164648,2757.9,2757.8,1.03587671]
[1724538983379,1.49998722,2758.1,2757.7,2.3695]
[1724538983380,5.12574722,2758.1,2757.7,2.3695]
[1724538983585,0.75176561,2757.8,2757.7,2.3695]
[1724538983727,0.75175924,2757.8,2757.7,2.3695]
[1724538984156,1.49998722,2758.0,2757.7,2.3695]
[1724538984379,1.62606475,2758.0,2757.7,2.3695]
[1724538984530,1.62606475,2758.0,2757.7,3.12096771]
[1724538985769,1.96301105,2757.9,2757.7,2.3695]
[1724538985931,0.12608164,2757.8,2757.7,2.3695]
[1724538986976,0.12608164,2757.8,2757.5,0.782]
[1724538986977,9.59507082,2757.8,2757.5,0.782]
[1724538987128,1.96680185,2757.7,2757.5,0.782]
[1724538987332,1.50379432,2757.7,2757.5,0.782]
[1724538988149,5.12986432,2757.8,2757.5,0.782]
[1724538988347,0.12608987,2757.7,2757.5,0.782]